bitfinex-derivatives/quotes_SOLF0:USTF0_20241101
["timestamp","ask_amount","ask_price","bid_price","bid_amount"]
[1730491038061,7.38244981,166.7,166.65,3.0022]
[1730491038062,3.0018,166.68,166.65,3.0022]
[1730491038563,7.38244981,166.7,166.58,72.21956794]
[1730491038564,7.38244981,166.69,166.62,7.38244981]
[1730491038862,10.38444981,166.67,166.63,3.0024]
[1730491041160,3.002,166.67,166.63,3.0024]
[1730491041471,3.0017,166.68,166.65,3.0022]
[1730491042351,3.0019,166.67,166.64,3.0023]
[1730491044173,3.0017,166.68,166.65,3.0021]
[1730491047657,3.0017,166.68,166.64,3.0023]
[1730491049155,3.0017,166.68,166.58,72.21956794]
[1730491049156,7.38244981,166.71,166.66,7.38244981]
[1730491049351,7.38244981,166.71,166.62,3.56]
[1730491049352,3.0012,166.71,166.67,7.38244981]
[1730491049977,3.0016,166.69,166.66,7.38244981]
[1730491050772,3.0016,166.69,166.66,10.38434981]
[1730491051162,3.0014,166.7,166.66,7.38244981]
[1730491051361,7.38244981,166.71,166.68,3.0016]
[1730491051753,10.38364981,166.71,166.68,3.0016]
[1730491051956,3.0012,166.71,166.68,3.0016]
[1730491055869,7.38244981,166.69,166.64,7.38244981]
[1730491056467,7.38244981,166.69,166.64,3.0023]
[1730491056672,1.309,166.72,166.64,3.0023]
[1730491056673,7.38244981,166.68,166.64,3.0023]
[1730491056864,7.38244981,166.68,166.62,10.92244981]
[1730491057059,3.002,166.66,166.63,3.0025]
[1730491058163,3.0025,166.64,166.62,3.0027]
[1730491063068,3.0021,166.66,166.63,3.0024]
[1730491063369,3.0021,166.66,166.62,7.38244981]
[1730491063570,7.38244981,166.68,166.62,7.38244981]
[1730491063872,7.38244981,166.68,166.63,3.0025]
[1730491063873,3.0023,166.65,166.63,3.0025]
[1730491065178,7.38244981,166.68,166.62,7.38244981]
[1730491065869,3.0019,166.67,166.64,3.0022]
[1730491067573,7.38244981,166.68,166.62,7.38244981]
[1730491067773,7.38244981,166.66,166.63,3.0025]
[1730491068477,3.0021,166.66,166.63,3.0025]
[1730491068872,7.38244981,166.69,166.64,7.38244981]
[1730491069181,3.0018,166.68,166.65,3.0021]
[1730491069377,7.38244981,166.69,166.65,3.0021]
[1730491069877,7.38244981,166.69,166.64,10.38464981]
[1730491070078,7.38244981,166.69,166.64,7.38244981]
[1730491070271,7.38244981,166.69,166.59,9.5465]
[1730491070272,10.38404981,166.69,166.63,7.38244981]
[1730491070472,10.38404981,166.69,166.65,3.0021]
[1730491070967,7.38244981,166.69,166.65,3.0021]
[1730491071168,3.0017,166.68,166.65,3.0021]
[1730491071885,3.0014,166.7,166.66,3.0019]
[1730491072077,3.0014,166.7,166.66,10.38434981]
[1730491072266,3.0014,166.7,166.66,7.38244981]
[1730491072468,3.0014,166.7,166.67,3.0017]
[1730491072780,7.38244981,166.71,166.67,3.0017]
[1730491072781,3.0012,166.71,166.67,3.0017]
[1730491073377,3.0012,166.71,166.68,3.0016]
[1730491076478,7.38244981,166.7,166.66,3.0019]
[1730491076989,3.0016,166.69,166.66,3.0019]
[1730491077868,7.38244981,166.69,166.62,7.38244981]
[1730491078075,7.38244981,166.67,166.62,7.38244981]
[1730491078277,7.38244981,166.66,166.61,7.38244981]
[1730491079078,3.0025,166.64,166.61,10.38524981]
[1730491079285,3.0025,166.64,166.59,7.38244981]
[1730491080185,7.38244981,166.63,166.58,7.38244981]
[1730491080378,7.38244981,166.6,166.55,7.38244981]
[1730491080579,7.38244981,166.61,166.56,7.38244981]
[1730491080779,10.38554981,166.61,166.57,3.0036]
[1730491081377,1.2843,166.62,166.58,7.38244981]
[1730491081576,3.54,166.64,166.58,7.38244981]
[1730491082074,3.0028,166.62,166.58,7.38244981]
[1730491082380,7.38244981,166.63,166.58,7.38244981]
[1730491082983,3.003,166.61,166.57,3.0035]
[1730491083185,3.003,166.61,166.56,7.38244981]
[1730491083376,3.003,166.61,166.57,7.38244981]
[1730491084279,3.003,166.61,166.58,3.0035]
[1730491085590,3.0031,166.6,166.57,3.0036]
[1730491086385,10.38544981,166.61,166.58,3.0034]
[1730491088484,3.003,166.61,166.58,3.0034]
[1730491090397,3.0026,166.63,166.6,3.0031]
[1730491091683,7.38244981,166.63,166.58,7.38244981]
[1730491091889,3.0029,166.62,166.58,3.0034]
[1730491092394,3.0029,166.62,166.59,3.0033]
[1730491092599,10.38544981,166.61,166.56,7.38244981]
[1730491092894,10.38544981,166.61,166.58,3.0035]
[1730491093500,10.38564981,166.6,166.56,3.0037]
[1730491093702,7.38244981,166.6,166.56,3.0037]
[1730491094094,3.0033,166.59,166.56,3.0037]
[1730491094302,3.0033,166.59,166.57,3.0036]
[1730491094997,3.0033,166.59,166.56,10.38614981]
[1730491095597,7.38244981,166.62,166.56,7.38244981]
[1730491095809,7.38244981,166.62,166.54,7.38244981]
[1730491096001,7.38244981,166.62,166.56,7.38244981]
[1730491096201,3.0032,166.6,166.57,3.0035]
[1730491096802,7.38244981,166.62,166.57,3.0035]
[1730491098108,3.0032,166.6,166.57,3.0035]
[1730491098293,3.0032,166.6,166.56,7.38244981]
[1730491098499,7.38244981,166.62,166.58,3.0034]
[1730491098699,3.003,166.61,166.58,3.0034]
[1730491100001,10.38544981,166.61,166.58,3.0034]
[1730491101307,7.38244981,166.61,166.55,7.38244981]
[1730491101514,10.38574981,166.6,166.56,3.0038]
[1730491101915,3.0033,166.6,166.57,3.0036]
[1730491102810,7.38244981,166.61,166.55,7.38244981]
[1730491103019,3.0033,166.59,166.56,3.0038]
[1730491103322,7.38244981,166.61,166.55,7.38244981]
[1730491103723,3.0032,166.6,166.57,3.0035]
[1730491104010,3.54,166.64,166.56,7.38244981]
[1730491104011,7.38244981,166.63,166.56,7.38244981]
[1730491104408,3.0029,166.62,166.58,3.0034]
[1730491105504,3.0029,166.61,166.58,3.0034]
[1730491108815,7.38244981,166.61,166.55,7.38244981]
[1730491109020,3.0032,166.6,166.57,3.0036]
[1730491110307,10.38544981,166.61,166.57,3.0036]
[1730491110502,10.38544981,166.61,166.55,7.38244981]
[1730491110707,10.38544981,166.61,166.58,3.0034]
[1730491115124,3.0031,166.6,166.57,3.0036]
[1730491115320,7.38244981,166.6,166.53,7.38244981]
[1730491115523,3.0036,166.58,166.55,3.0039]
[1730491115822,7.38244981,166.63,166.56,7.38244981]
[1730491117620,7.38244981,166.63,166.52,4.7907]
[1730491117621,3.0028,166.62,166.58,10.38584981]
[1730491117815,3.0028,166.62,166.58,7.38244981]
[1730491118917,3.0028,166.62,166.59,3.0032]
[1730491119117,3.0028,166.62,166.58,7.38244981]
[1730491119518,3.0027,166.63,166.58,7.38244981]
[1730491119719,7.38244981,166.64,166.58,7.38244981]
[1730491121326,3.0028,166.62,166.59,3.0032]
[1730491121915,7.38244981,166.64,166.58,7.38244981]
[1730491122221,7.38244981,166.61,166.55,7.38244981]
[1730491122725,3.0032,166.6,166.57,3.0036]
[1730491125626,3.003,166.61,166.58,10.38584981]
[1730491126324,3.0031,166.6,166.58,10.38584981]
[1730491126831,3.0031,166.6,166.58,7.38244981]
[1730491128018,3.0029,166.62,166.58,10.38584981]
[1730491128218,3.0029,166.62,166.58,7.38244981]
[1730491128515,7.38244981,166.64,166.58,7.38244981]
[1730491128720,3.0029,166.62,166.58,10.38584981]
[1730491128917,3.0029,166.62,166.58,7.38244981]
[1730491129122,4.8486,166.66,166.59,7.38244981]
[1730491129123,7.38244981,166.65,166.59,7.38244981]
[1730491129620,3.0028,166.62,166.59,3.0033]
[1730491131038,3.003,166.61,166.58,3.0035]
[1730491134929,3.003,166.61,166.56,7.38244981]
[1730491134930,3.0033,166.59,166.56,10.38614981]
[1730491135235,3.0033,166.59,166.56,7.38244981]
[1730491136128,7.38244981,166.62,166.56,7.38244981]
[1730491136334,3.0032,166.6,166.57,3.0035]
[1730491136735,7.38244981,166.62,166.56,7.38244981]
[1730491136930,7.38244981,166.62,166.56,10.38614981]
[1730491137233,3.0034,166.59,166.56,10.38614981]
[1730491138535,3.0034,166.59,166.56,7.38244981]
[1730491140442,3.0034,166.59,166.57,3.0036]
[1730491141841,7.38244981,166.61,166.54,7.38244981]
[1730491142040,3.0038,166.57,166.53,7.38244981]
[1730491142341,4.8486,166.66,166.53,3.0043]
[1730491142342,7.38244981,166.58,166.53,3.0043]
[1730491142735,3.004,166.55,166.51,79.63738868]
[1730491142932,7.38244981,166.56,166.51,75.25963887]
[1730491143141,3.0039,166.56,166.51,79.63738868]
[1730491143339,3.8591,166.6,166.55,7.38244981]
[1730491143844,3.0038,166.57,166.53,7.38244981]
[1730491144231,3.0038,166.57,166.55,3.004]
[1730491144447,3.0038,166.57,166.53,7.38244981]
[1730491146041,3.8591,166.6,166.51,72.25493887]
[1730491146042,1.2759,166.6,166.54,7.38244981]
[1730491146233,1.2759,166.6,166.56,7.38244981]
[1730491146439,3.54,166.61,166.56,7.38244981]
[1730491146847,7.38244981,166.64,166.57,7.38244981]
[1730491147039,7.38244981,166.62,166.56,7.38244981]
[1730491147241,7.38244981,166.61,166.56,3.0038]
[1730491147445,7.38244981,166.62,166.56,10.38624981]
[1730491148147,3.0033,166.59,166.56,10.38624981]
[1730491149037,7.38244981,166.62,166.56,7.38244981]
[1730491149348,7.38244981,166.63,166.58,7.38244981]
[1730491149750,3.0029,166.61,166.59,3.0032]
[1730491149947,7.38244981,166.63,166.59,3.0032]
[1730491150142,8.88836867,166.65,166.62,7.38244981]
[1730491150343,1.328,166.69,166.64,7.38244981]
[1730491150539,8.8850426,166.69,166.58,3.54]
[1730491150741,8.8850426,166.71,166.69,3.0014]
[1730491150941,1.3518,166.73,166.69,10.38384981]
[1730491151451,1.3518,166.73,166.69,7.38244981]
[1730491152647,3.0011,166.72,166.69,7.38244981]
[1730491153454,3.0011,166.72,166.68,3.0015]
[1730491153951,7.38244981,166.7,166.64,7.38244981]
[1730491154151,7.38244981,166.71,166.67,7.38244981]
[1730491154360,8.73424981,166.73,166.67,7.38244981]
[1730491155251,17.57655827,166.75,166.7,7.38244981]
[1730491155447,1.328,166.75,166.7,7.38244981]
[1730491156366,3.0009,166.73,166.7,7.38244981]
[1730491157252,3.0008,166.73,166.7,10.38374981]
[1730491158761,3.0008,166.73,166.7,7.38244981]
[1730491159258,3.0007,166.74,166.72,7.38244981]
[1730491159857,7.38244981,166.78,166.72,7.38244981]
[1730491160055,3.0005,166.75,166.72,7.38244981]
[1730491161156,7.38244981,166.78,166.72,7.38244981]
[1730491161454,3.0007,166.74,166.72,7.38244981]
[1730491161844,3.0004,166.75,166.72,7.38244981]
[1730491162049,9.98104981,166.79,166.73,7.38244981]
[1730491162266,0.95998632,166.78,166.73,7.38244981]
[1730491162556,84.7922941,166.83,166.77,7.38244981]
[1730491162754,0.95984979,166.82,166.77,7.38244981]
[1730491162955,2.9998,166.79,166.77,7.38244981]
[1730491163260,2.9998,166.79,166.76,7.38244981]
[1730491164351,7.38244981,166.82,166.76,7.38244981]
[1730491164552,2.9995,166.8,166.77,7.38244981]
[1730491165254,2.9997,166.79,166.77,7.38244981]
[1730491165661,7.38244981,166.83,166.77,7.38244981]
[1730491165861,0.95983471,166.82,166.77,7.38244981]
[1730491166162,2.9994,166.81,166.77,7.38244981]
[1730491166348,7.38244981,166.83,166.77,7.38244981]
[1730491166550,0.95983545,166.82,166.77,7.38244981]
[1730491166752,7.38244981,166.8,166.74,7.38244981]
[1730491167254,3.0004,166.76,166.74,7.38244981]
[1730491167653,7.38244981,166.8,166.74,7.38244981]
[1730491167860,7.38244981,166.79,166.73,7.38244981]
[1730491168162,7.38244981,166.77,166.72,3.54]
[1730491168771,3.0005,166.75,166.72,3.54]
[1730491169460,3.0007,166.74,166.7,10.38364981]
[1730491170065,7.38244981,166.76,166.7,10.38364981]
[1730491170365,2.6618,166.79,166.74,7.38244981]
[1730491170557,0.9599839,166.78,166.74,7.38244981]
[1730491170753,3.0002,166.77,166.74,7.38244981]
[1730491171658,1.309,166.79,166.76,7.38244981]
[1730491171659,2.9997,166.79,166.76,7.38244981]
[1730491171865,7.38244981,166.82,166.76,7.38244981]
[1730491172065,0.95986367,166.81,166.76,7.38244981]
[1730491172366,3.0,166.78,166.76,7.38244981]
[1730491172559,7.38244981,166.79,166.73,7.38244981]
[1730491172758,12.27524981,166.83,166.69,1.3679]
[1730491172966,2.9994,166.81,166.78,7.38244981]
[1730491173564,2.9998,166.79,166.77,7.38244981]
[1730491174066,12.27524981,166.83,166.77,7.38244981]
[1730491174271,2.9995,166.8,166.77,7.38244981]
[1730491174469,2.9995,166.8,166.77,10.38244981]
[1730491175170,2.9995,166.8,166.77,7.38244981]
[1730491177368,7.38244981,166.82,166.76,7.38244981]
[1730491177674,7.38244981,166.77,166.71,7.38244981]
[1730491177971,7.38244981,166.8,166.74,10.38304981]
[1730491178175,7.38244981,166.8,166.74,7.38244981]
[1730491178389,3.0002,166.77,166.74,7.38244981]
[1730491178566,7.38244981,166.8,166.74,7.38244981]
[1730491178868,4.8928,166.83,166.73,7.38244981]
[1730491178869,3.0003,166.76,166.73,7.38244981]
[1730491179060,7.38244981,166.78,166.73,7.38244981]
[1730491179666,3.0005,166.75,166.73,7.38244981]
[1730491182270,7.38244981,166.78,166.73,7.38244981]
[1730491182461,0.95998268,166.77,166.71,10.38354981]
[1730491182664,7.38244981,166.78,166.71,10.38354981]
[1730491182877,0.96000286,166.77,166.71,7.38244981]
[1730491183083,0.96000286,166.77,166.73,7.38244981]
[1730491183378,3.0002,166.77,166.75,7.38244981]
[1730491184762,4.8928,166.83,166.69,1.3679]
[1730491184763,7.38244981,166.78,166.71,7.38244981]
[1730491184963,0.9599989,166.77,166.71,7.38244981]
[1730491185177,7.38244981,166.8,166.73,7.38244981]
[1730491185473,3.0002,166.77,166.73,10.38304981]
[1730491186281,12.27524981,166.83,166.76,7.38244981]
[1730491186574,0.9598674,166.82,166.76,7.38244981]
[1730491186779,3.0,166.78,166.76,7.38244981]
[1730491188485,2.9996,166.8,166.76,10.38264981]
[1730491188672,4.8928,166.83,166.76,3.0002]
[1730491188974,0.95986183,166.82,166.76,3.0002]
[1730491189385,0.95986183,166.82,166.72,15.10719324]
[1730491189980,3.0,166.78,166.72,15.10719324]
[1730491190180,3.0,166.78,166.75,3.0003]
[1730491190373,3.0,166.78,166.72,15.10719324]
[1730491190878,3.0,166.77,166.72,15.10719324]
[1730491191080,24.79838198,166.83,166.72,15.10719324]
[1730491191274,5.82667004,166.82,166.75,3.0003]
[1730491191473,0.95991574,166.81,166.72,11.52719324]
[1730491191673,24.79838198,166.83,166.71,3.0007]
[1730491191981,5.82711001,166.82,166.71,3.0007]
[1730491192178,3.0001,166.76,166.71,3.0007]
[1730491192780,3.0001,166.75,166.71,3.0007]
[1730491192976,8.37838874,166.82,166.7,15.10719324]
[1730491193178,16.41999324,166.83,166.72,11.52719324]
[1730491193179,0.95992869,166.81,166.72,11.52719324]
[1730491193383,24.79838198,166.83,166.72,11.52719324]
[1730491193681,5.82854429,166.82,166.75,3.0001]
[1730491193884,0.95981941,166.81,166.75,3.0001]
[1730491194086,16.41999324,166.83,166.75,3.0001]
[1730491194381,5.82965241,166.82,166.75,3.0001]
[1730491194572,0.95979768,166.81,166.75,3.0001]
[1730491194772,24.79838198,166.83,166.75,3.0001]
[1730491194973,2.9997,166.78,166.74,3.0002]
[1730491195173,24.79838198,166.83,166.72,11.52719324]
[1730491195387,5.82996218,166.82,166.72,11.52719324]
[1730491195588,0.95984187,166.81,166.72,11.52719324]
[1730491195775,2.9998,166.79,166.75,3.0004]
[1730491195975,16.41999324,166.83,166.72,11.52719324]
[1730491196174,0.95981921,166.82,166.72,11.52719324]
[1730491196370,2.9997,166.79,166.72,11.52719324]
[1730491196583,2.9997,166.79,166.74,3.0005]
[1730491197087,16.41999324,166.83,166.72,11.52719324]
[1730491197285,0.95984673,166.82,166.72,11.52719324]
[1730491197476,3.0006,166.74,166.7,14.52839324]
[1730491197786,11.52719324,166.81,166.7,11.52719324]
[1730491197972,11.52719324,166.71,166.58,11.52719324]
[1730491198170,6.4187,166.7,166.58,11.52719324]
[1730491198372,7.7403,166.7,166.58,11.52719324]
[1730491198579,3.0022,166.66,166.61,3.0029]
[1730491198780,7.7403,166.7,166.61,3.0029]
[1730491199091,7.7403,166.7,166.58,11.52719324]
[1730491199277,3.0021,166.66,166.61,3.0029]
[1730491199981,3.86,166.68,166.6,11.52719324]
[1730491200184,3.8803,166.7,166.6,11.52719324]
[1730491200381,3.8803,166.7,166.54,15.38719324]
[1730491200382,3.86,166.69,166.63,11.52719324]
[1730491200582,6.8616,166.69,166.64,3.0023]
[1730491200991,3.86,166.69,166.64,3.0023]
[1730491201678,3.86,166.69,166.63,11.52719324]
[1730491203479,3.9012,166.76,166.65,11.52719324]
[1730491203676,3.86,166.74,166.67,11.52719324]
[1730491204589,3.0012,166.71,166.67,3.0017]
[1730491204891,15.38719324,166.74,166.63,11.52719324]
[1730491205283,15.38719324,166.74,166.66,3.002]
[1730491205779,11.52719324,166.74,166.68,3.0015]
[1730491205984,3.86,166.73,166.65,11.52719324]
[1730491206187,3.86,166.74,166.65,11.52719324]
[1730491206382,3.001,166.72,166.68,3.0016]
[1730491206692,3.86,166.74,166.65,11.52719324]
[1730491206889,3.0009,166.73,166.69,3.0013]
[1730491207089,3.9012,166.76,166.62,1.2767]
[1730491207090,5.1637,166.76,166.68,11.52719324]
[1730491207488,3.0007,166.74,166.7,3.0012]
[1730491207792,5.1637,166.76,166.68,11.52719324]
[1730491207991,5.1637,166.76,166.64,3.86]
[1730491207992,3.0004,166.76,166.72,3.0008]
[1730491208595,3.0004,166.75,166.72,3.0008]
[1730491209289,3.0008,166.73,166.7,3.0013]
[1730491209590,15.38719324,166.77,166.66,11.52719324]
[1730491209794,3.0011,166.72,166.68,3.0015]
[1730491211088,15.38719324,166.77,166.67,3.0017]
[1730491211387,2.26546015,166.76,166.62,1.2767]
[1730491211591,12.48735339,166.75,166.64,11.52719324]
[1730491211902,12.81409324,166.75,166.66,3.002]
[1730491212092,2.26672743,166.74,166.66,3.002]
[1730491212295,1.3065,166.74,166.66,3.002]
[1730491212795,0.96030198,166.73,166.66,3.002]
[1730491213094,3.0014,166.7,166.66,3.002]
[1730491214095,3.0014,166.7,166.64,11.52719324]
[1730491214399,3.0014,166.7,166.67,3.0017]
[1730491217900,3.0017,166.68,166.66,3.002]
[1730491218200,3.86,166.73,166.64,11.52719324]
[1730491218397,3.0015,166.7,166.67,3.0017]
[1730491218796,3.86,166.73,166.66,11.52719324]
[1730491219504,3.0011,166.71,166.66,11.52719324]
[1730491219796,11.52719324,166.81,166.68,11.52719324]
[1730491219999,4.8201105,166.8,166.7,11.52719324]
[1730491220199,11.52719324,166.81,166.73,3.0006]
[1730491220200,3.0002,166.77,166.73,3.0006]
[1730491220400,2.5035,166.82,166.7,11.52719324]
[1730491220401,3.86,166.8,166.7,11.52719324]
[1730491220703,2.9997,166.79,166.76,3.0001]
[1730491220888,3.86,166.8,166.73,11.52719324]
[1730491221201,2.9998,166.79,166.75,3.0002]
[1730491222408,3.86,166.8,166.75,3.0002]
[1730491222607,2.9999,166.78,166.75,3.0002]
[1730491222901,3.86,166.8,166.71,11.52719324]
[1730491223093,3.86,166.8,166.69,1.3799]
[1730491223297,11.52719324,166.78,166.7,3.0012]
[1730491223903,3.0007,166.74,166.7,3.0012]
[1730491224305,3.86,166.75,166.68,72.17727867]
[1730491224498,3.0012,166.71,166.68,72.17727867]
[1730491225105,5.2364,166.75,166.68,72.17727867]
[1730491225106,3.0008,166.73,166.68,72.17727867]
[1730491225802,5.2364,166.75,166.68,83.70447191]
[1730491225803,6.8605,166.75,166.68,83.70447191]
[1730491226594,3.0005,166.75,166.68,83.70447191]
[1730491226804,3.0005,166.75,166.71,3.001]
[1730491227801,6.83550318,166.77,166.68,83.70447191]
[1730491229005,3.0007,166.74,166.7,3.0012]
[1730491229200,3.86,166.77,166.68,83.70447191]
[1730491229407,3.0006,166.75,166.71,3.001]
[1730491230512,3.001,166.72,166.68,72.17727867]
[1730491231205,3.0013,166.71,166.68,72.17727867]
[1730491231405,11.52719324,166.74,166.68,72.17727867]
[1730491231608,1.2764,166.73,166.64,3.0023]
[1730491231802,3.78,166.72,166.64,3.0023]
[1730491231997,3.78,166.72,166.62,11.52719324]
[1730491231998,15.30719324,166.72,166.62,11.52719324]
[1730491233006,3.002,166.67,166.63,3.0024]
[1730491233304,15.30719324,166.72,166.63,3.0024]
[1730491233510,3.0016,166.69,166.62,3.0026]
[1730491233812,15.30719324,166.72,166.59,11.52719324]
[1730491234002,0.9603512,166.71,166.59,11.52719324]
[1730491234310,3.0018,166.68,166.63,3.0025]
[1730491234511,15.30719324,166.72,166.63,3.0025]
[1730491234908,3.002,166.67,166.63,3.0025]
[1730491235807,15.30719324,166.72,166.63,3.0025]
[1730491236014,3.002,166.66,166.63,3.0025]
[1730491236308,3.78,166.67,166.61,3.0029]
[1730491236705,3.0028,166.62,166.59,3.0032]
[1730491238102,2.5989,166.66,166.57,11.52719324]
[1730491238823,3.0024,166.64,166.57,11.52719324]
[1730491239220,3.0026,166.63,166.6,3.003]
[1730491239415,1.3503,166.66,166.57,11.52719324]
[1730491239617,5.1303,166.66,166.57,11.52719324]
[1730491239922,3.0025,166.62,166.59,3.0032]
[1730491240126,5.1303,166.66,166.57,11.52719324]
[1730491240325,8.08361409,166.66,166.57,11.52719324]
[1730491240624,5.1303,166.66,166.57,11.52719324]
[1730491241031,1.3503,166.66,166.59,11.52719324]
[1730491241330,3.78,166.66,166.59,11.52719324]
[1730491241523,6.7818,166.66,166.62,3.0024]
[1730491241736,3.78,166.66,166.59,11.52719324]
[1730491242328,3.0017,166.66,166.61,3.0026]
[1730491242829,3.0017,166.66,166.6,1.3347]
[1730491243020,1.3767,166.72,166.64,3.0019]
[1730491243021,3.0014,166.68,166.64,3.0019]
[1730491243428,5.1567,166.72,166.63,11.52719324]
[1730491243631,3.0016,166.67,166.63,14.52939324]
[1730491244030,5.1567,166.72,166.63,11.52719324]
[1730491244629,3.0018,166.68,166.63,14.52959324]
[1730491245830,5.1567,166.72,166.63,11.52719324]
[1730491246139,3.0016,166.69,166.66,3.002]
[1730491246328,3.0016,166.69,166.63,11.52719324]
[1730491246835,3.0016,166.69,166.65,3.0021]
[1730491248440,3.0018,166.68,166.64,3.0023]
[1730491249441,3.0018,166.68,166.61,11.52719324]
[1730491249640,3.0018,166.68,166.65,3.0022]
[1730491250252,3.0021,166.66,166.64,3.0023]
[1730491250428,12.90389324,166.72,166.57,11.52719324]
[1730491250429,18.37877879,166.68,166.57,11.52719324]
[1730491250737,15.30719324,166.68,166.57,11.52719324]
[1730491250942,3.0027,166.63,166.6,3.0031]
[1730491251237,2.94216397,166.67,166.57,11.52719324]
[1730491251454,3.003,166.61,166.58,3.0034]
[1730491251638,11.52719324,166.65,166.55,12.88729324]
[1730491252140,3.0034,166.59,166.55,15.89119324]
[1730491252348,11.52719324,166.63,166.52,18.06549324]
[1730491252529,15.30719324,166.63,166.52,18.06549324]
[1730491252835,3.0035,166.59,166.55,3.0039]
[1730491253040,3.0035,166.59,166.52,18.06549324]
[1730491253232,15.30719324,166.63,166.54,3.004]
[1730491253233,3.0038,166.57,166.54,3.004]
[1730491253428,11.52719324,166.61,166.52,1.3854]
[1730491253633,11.52719324,166.61,166.5,12.82519324]
[1730491253837,1.2486,166.6,166.5,12.82519324]
[1730491254033,1.2486,166.6,166.48,16.63699324]
[1730491254234,1.3556,166.59,166.48,16.63699324]
[1730491254636,3.0039,166.56,166.51,3.0046]
[1730491254945,12.88279324,166.59,166.48,16.63699324]
[1730491255151,3.0041,166.55,166.51,3.0047]
[1730491256737,12.88279324,166.59,166.51,3.0047]
[1730491257045,3.0042,166.54,166.51,3.0047]
[1730491261853,1.3703,166.58,166.48,12.85699324]
[1730491262036,1.3703,166.58,166.47,114.068888]
[1730491262037,11.52719324,166.56,166.47,112.799088]
[1730491262242,5.0503,166.58,166.5,11.52719324]
[1730491262747,3.0039,166.56,166.53,3.0042]
[1730491263450,3.0039,166.56,166.52,3.0045]
[1730491264664,3.0039,166.56,166.5,11.52719324]
[1730491265452,3.0039,166.56,166.53,3.0043]
[1730491270761,4.3739,166.58,166.55,3.0039]
[1730491270961,3.0036,166.58,166.55,3.0039]
[1730491275164,3.0036,166.58,166.52,11.52719324]
[1730491276057,3.0036,166.58,166.55,3.0039]
[1730491276657,3.0031,166.6,166.52,11.52719324]
[1730491276864,3.0031,166.6,166.53,1.3338]
[1730491277357,3.0033,166.59,166.57,3.0035]
[1730491277553,11.52719324,166.64,166.55,11.52719324]
[1730491277777,7.6704,166.65,166.55,11.52719324]
[1730491277966,3.0028,166.62,166.55,11.52719324]
[1730491278359,7.6704,166.65,166.55,11.52719324]
[1730491278564,3.0031,166.6,166.55,11.52719324]
[1730491279159,3.0031,166.6,166.57,3.0035]
[1730491280258,3.0031,166.6,166.58,3.0035]
[1730491280455,3.0032,166.6,166.54,3.68]
[1730491280669,3.0032,166.6,166.55,7.3866989]
[1730491281170,3.0032,166.6,166.57,3.0035]
[1730491285269,3.0032,166.6,166.56,7.3866989]
[1730491285468,3.0032,166.6,166.58,3.0034]
[1730491286176,3.0028,166.62,166.59,7.3866989]
[1730491286380,3.9904,166.65,166.59,7.3866989]
[1730491286672,7.3866989,166.64,166.58,7.3866989]
[1730491286876,7.3866989,166.64,166.6,3.0031]
[1730491287185,1.3238,166.65,166.6,7.3866989]
[1730491287475,3.0022,166.66,166.63,3.0025]
[1730491288269,7.3866989,166.67,166.64,3.0023]
[1730491288270,3.002,166.67,166.64,3.0023]
[1730491289080,3.0021,166.66,166.63,10.3891989]
[1730491289773,3.0021,166.66,166.63,3.0025]
[1730491289980,3.0027,166.63,166.6,3.0031]
[1730491290172,3.0027,166.63,166.58,7.3866989]
[1730491290369,7.3866989,166.64,166.58,7.3866989]
[1730491290880,3.0028,166.62,166.59,3.0031]
[1730491292279,3.0028,166.62,166.6,3.0031]
[1730491292480,3.0026,166.63,166.6,3.0031]
[1730491295873,3.0028,166.62,166.6,3.0031]
[1730491297792,3.0021,166.66,166.64,3.0023]
[1730491298086,14.06043647,166.69,166.58,12.80283647]
[1730491298277,3.93263935,166.68,166.58,12.80283647]
[1730491298476,2.97205797,166.68,166.58,12.80283647]
[1730491298681,3.0023,166.65,166.62,3.0027]
[1730491298884,14.06043647,166.69,166.62,3.0027]
[1730491299182,3.0019,166.67,166.62,3.0027]
[1730491299376,2.98660116,166.67,166.62,3.0027]
[1730491299576,14.06043647,166.69,166.62,3.0027]
[1730491299879,3.90547472,166.68,166.62,3.0027]
[1730491300184,3.0021,166.66,166.63,3.0024]